[Event "Late-Titled-Tuesday-Blitz-September-26-2023"]
[Site "Chess.com"]
[Date "2023.09.26"]
[Round "5"]
[White "Angry_Twin"]
[Black "DanielNaroditsky"]
[Result "0-1"]
[WhiteElo "2946"]
[BlackElo "3139"]
[TimeControl "180+1"]
[EndTime "14:54:58 PDT"]
[Termination "DanielNaroditsky won by checkmate"]

1. e4 {[%clk 0:03:00.9]} 1... c5 {[%clk 0:02:56.3]} 2. Nf3 {[%clk 0:03:00.2]}
2... d6 {[%clk 0:02:56.9]} 3. Bb5+ {[%clk 0:02:59.9]} 3... Nd7 {[%clk
0:02:54.1]} 4. O-O {[%clk 0:02:58.3]} 4... a6 {[%clk 0:02:53.4]} 5. Bd3 {[%clk
0:02:57.8]} 5... Ngf6 {[%clk 0:02:53.2]} 6. Re1 {[%clk 0:02:58.1]} 6... g5
{[%clk 0:02:47.2]} 7. Nxg5 {[%clk 0:02:48.3]} 7... Ne5 {[%clk 0:02:46.3]} 8. Be2
{[%clk 0:02:45.1]} 8... Rg8 {[%clk 0:02:31.2]} 9. Nf3 {[%clk 0:02:43.8]} 9...
Bh3 {[%clk 0:02:19.9]} 10. g3 {[%clk 0:02:41.8]} 10... Nc6 {[%clk 0:02:10.3]}
11. d4 {[%clk 0:02:31.9]} 11... cxd4 {[%clk 0:02:03.4]} 12. Nxd4 {[%clk
0:02:29.7]} 12... Qd7 {[%clk 0:01:48.1]} 13. Nc3 {[%clk 0:02:26.9]} 13... e6
{[%clk 0:01:38.3]} 14. Bf3 {[%clk 0:01:39.1]} 14... Ne5 {[%clk 0:01:34.4]} 15.
Bg2 {[%clk 0:01:37.3]} 15... Bxg2 {[%clk 0:01:33.2]} 16. Kxg2 {[%clk 0:01:35.4]}
16... Rc8 {[%clk 0:01:33.6]} 17. f4 {[%clk 0:01:21.6]} 17... Ng6 {[%clk
0:01:32.5]} 18. Kh1 {[%clk 0:01:16]} 18... b5 {[%clk 0:01:31.1]} 19. a3 {[%clk
0:01:15.1]} 19... Qb7 {[%clk 0:01:29.5]} 20. Qf3 {[%clk 0:01:13.5]} 20... Rc4
{[%clk 0:01:28]} 21. Be3 {[%clk 0:01:00.1]} 21... Be7 {[%clk 0:01:17.8]} 22. Bf2
{[%clk 0:00:48.4]} 22... h5 {[%clk 0:01:16.1]} 23. Rad1 {[%clk 0:00:44.3]} 23...
h4 {[%clk 0:00:59.8]} 24. Rd3 {[%clk 0:00:18.4]} 24... hxg3 {[%clk 0:00:57.4]}
25. hxg3 {[%clk 0:00:19.3]} 25... Nd7 {[%clk 0:00:39.3]} 26. Nf5 {[%clk
0:00:10.5]} 26... Nde5 {[%clk 0:00:14.8]} 27. fxe5 {[%clk 0:00:10.9]} 27... Nxe5
{[%clk 0:00:15.7]} 28. Qg2 {[%clk 0:00:11.5]} 28... exf5 {[%clk 0:00:14.3]} 29.
Rd4 {[%clk 0:00:10.8]} 29... f4 {[%clk 0:00:12.2]} 30. Rxc4 {[%clk 0:00:09.9]}
30... Rh8+ {[%clk 0:00:09.7]} 31. Kg1 {[%clk 0:00:09]} 31... f3 {[%clk
0:00:10.2]} 32. Qf1 {[%clk 0:00:09.4]} 32... bxc4 {[%clk 0:00:09.7]} 33. Bd4
{[%clk 0:00:08.8]} 33... Qxb2 {[%clk 0:00:05.9]} 34. Bxe5 {[%clk 0:00:08.6]}
34... dxe5 {[%clk 0:00:03.8]} 35. Qxf3 {[%clk 0:00:09]} 35... Bc5+ {[%clk
0:00:03]} 36. Kg2 {[%clk 0:00:09]} 36... Qxc2+ {[%clk 0:00:03.1]} 37. Ne2 {[%clk
0:00:09.4]} 37... Qd2 {[%clk 0:00:02.6]} 38. Rf1 {[%clk 0:00:09.5]} 38... Rh7
{[%clk 0:00:02.9]} 39. Rc1 {[%clk 0:00:07]} 39... Qh6 {[%clk 0:00:03.3]} 40.
Rxc4 {[%clk 0:00:03.1]} 40... Qh1# {[%clk 0:00:03.4]} 0-1

[Event "Late-Titled-Tuesday-Blitz-September-26-2023"]
[Site "Chess.com"]
[Date "2023.09.26"]
[Round "5"]
[White "GothamChess"]
[Black "Njal28"]
[Result "0-1"]
[WhiteElo "2711"]
[BlackElo "3083"]
[TimeControl "180+1"]
[EndTime "14:54:58 PDT"]
[Termination "Njal28 won by resignation"]

1. e4 {[%clk 0:03:00]} 1... g6 {[%clk 0:03:00.9]} 2. Bc4 {[%clk 0:02:59.6]} 2...
Bg7 {[%clk 0:03:00]} 3. Qf3 {[%clk 0:02:58.8]} 3... e6 {[%clk 0:03:00.1]} 4. d4
{[%clk 0:02:58.7]} 4... Bxd4 {[%clk 0:02:47.3]} 5. Ne2 {[%clk 0:02:59]} 5... Bg7
{[%clk 0:02:45.6]} 6. Nbc3 {[%clk 0:02:59.1]} 6... Nc6 {[%clk 0:02:43.9]} 7. Qg3
{[%clk 0:02:58]} 7... d6 {[%clk 0:02:44.1]} 8. Bg5 {[%clk 0:02:55.6]} 8... Nge7
{[%clk 0:02:44]} 9. O-O-O {[%clk 0:02:53.6]} 9... Bd7 {[%clk 0:02:39.8]} 10. h4
{[%clk 0:02:47.1]} 10... h6 {[%clk 0:02:40.3]} 11. Be3 {[%clk 0:02:45.5]} 11...
h5 {[%clk 0:02:41]} 12. Bg5 {[%clk 0:02:44.5]} 12... a6 {[%clk 0:02:39.1]} 13.
f4 {[%clk 0:02:37.1]} 13... b5 {[%clk 0:02:39.6]} 14. Bb3 {[%clk 0:02:31.7]}
14... b4 {[%clk 0:02:38.3]} 15. f5 {[%clk 0:02:27.6]} 15... Be5 {[%clk
0:02:35.1]} 16. Qf2 {[%clk 0:02:07.8]} 16... bxc3 {[%clk 0:02:30.7]} 17. fxg6
{[%clk 0:02:07.6]} 17... cxb2+ {[%clk 0:02:13.7]} 18. Kb1 {[%clk 0:02:07.3]}
18... O-O {[%clk 0:02:14.6]} 19. g7 {[%clk 0:01:14.1]} 19... Bxg7 {[%clk
0:02:14.4]} 20. Ng3 {[%clk 0:01:13.9]} 20... f6 {[%clk 0:02:06]} 21. Be3 {[%clk
0:01:09.6]} 21... Qe8 {[%clk 0:02:04.1]} 22. Qe2 {[%clk 0:01:06.3]} 22... Ne5
{[%clk 0:01:36.3]} 23. Nxh5 {[%clk 0:00:58.7]} 23... Bb5 {[%clk 0:01:36.6]} 24.
Bxe6+ {[%clk 0:00:56.2]} 24... Kh7 {[%clk 0:01:34.8]} 25. c4 {[%clk 0:00:52.8]}
25... Bxc4 {[%clk 0:01:34.1]} 26. Bxc4 {[%clk 0:00:51.1]} 26... Nxc4 {[%clk
0:01:35]} 27. Nxg7 {[%clk 0:00:46.4]} 27... Qb5 {[%clk 0:01:35.6]} 28. Qd3
{[%clk 0:00:35.1]} 28... Kxg7 {[%clk 0:01:33]} 29. Bd4 {[%clk 0:00:32.2]} 29...
Qb4 {[%clk 0:01:24.6]} 30. Rh3 {[%clk 0:00:26.2]} 30... c5 {[%clk 0:00:53]} 31.
a3 {[%clk 0:00:19.4]} 31... Nxa3+ {[%clk 0:00:49.9]} 32. Qxa3 {[%clk 0:00:19.2]}
32... Qxa3 {[%clk 0:00:50.8]} 33. Rxa3 {[%clk 0:00:19.2]} 33... cxd4 {[%clk
0:00:51.3]} 34. Rxd4 {[%clk 0:00:18.4]} 34... Rab8 {[%clk 0:00:51.6]} 35. Rxd6
{[%clk 0:00:18]} 35... Rfc8 {[%clk 0:00:51.8]} 36. Rd1 {[%clk 0:00:17.4]} 36...
Rc6 {[%clk 0:00:49.3]} 37. h5 {[%clk 0:00:17]} 37... Kh6 {[%clk 0:00:45.6]} 38.
Rg3 {[%clk 0:00:16]} 38... Rc1+ {[%clk 0:00:44.1]} 39. Rxc1 {[%clk 0:00:16.3]}
39... bxc1=Q+ {[%clk 0:00:45]} 40. Kxc1 {[%clk 0:00:16.7]} 40... Kxh5 {[%clk
0:00:45.6]} 41. Rg7 {[%clk 0:00:15.2]} 41... Nc6 {[%clk 0:00:44.6]} 42. Rf7
{[%clk 0:00:14.7]} 42... Kg6 {[%clk 0:00:44.6]} 43. Rc7 {[%clk 0:00:14.5]} 43...
Ne5 {[%clk 0:00:45.3]} 44. Kd1 {[%clk 0:00:13.3]} 44... Rb4 {[%clk 0:00:45.4]}
45. Ke2 {[%clk 0:00:11.1]} 45... Rxe4+ {[%clk 0:00:45.5]} 46. Kf2 {[%clk
0:00:12]} 46... Ra4 {[%clk 0:00:46.2]} 47. Kg3 {[%clk 0:00:10.6]} 47... f5
{[%clk 0:00:45.9]} 48. Kh3 {[%clk 0:00:09.8]} 48... Kg5 {[%clk 0:00:44.6]} 49.
g3 {[%clk 0:00:09.9]} 49... a5 {[%clk 0:00:43.8]} 50. Rg7+ {[%clk 0:00:10.3]}
50... Kf6 {[%clk 0:00:43.9]} 51. Ra7 {[%clk 0:00:10.2]} 51... Ra1 {[%clk
0:00:44.6]} 52. Ra6+ {[%clk 0:00:09.5]} 52... Kg5 {[%clk 0:00:45.2]} 53. Kg2
{[%clk 0:00:09.6]} 53... a4 {[%clk 0:00:45.3]} 54. Ra8 {[%clk 0:00:09.4]} 54...
a3 {[%clk 0:00:45.8]} 55. Kh2 {[%clk 0:00:09.4]} 55... a2 {[%clk 0:00:45]} 56.
g4 {[%clk 0:00:10.1]} 56... Nxg4+ {[%clk 0:00:44.8]} 57. Kg2 {[%clk 0:00:10.7]}
57... Ne3+ {[%clk 0:00:45.4]} 58. Kh2 {[%clk 0:00:09.4]} 58... Nd5 {[%clk
0:00:46]} 59. Ra3 {[%clk 0:00:08.3]} 59... Nb4 {[%clk 0:00:45.9]} 60. Kg2 {[%clk
0:00:07.8]} 60... Rb1 {[%clk 0:00:46.2]} 61. Rg3+ {[%clk 0:00:06.2]} 61... Kf6
{[%clk 0:00:46.3]} 0-1

[Event "Late-Titled-Tuesday-Blitz-September-26-2023"]
[Site "Chess.com"]
[Date "2023.09.26"]
[Round "5"]
[White "artin10862"]
[Black "karinachess1"]
[Result "1-0"]
[WhiteElo "2883"]
[BlackElo "2625"]
[TimeControl "180+1"]
[EndTime "14:54:59 PDT"]
[Termination "artin10862 won on time"]

1. d4 {[%clk 0:02:58.7]} 1... Nf6 {[%clk 0:02:59.8]} 2. e3 {[%clk 0:02:58.7]}
2... e6 {[%clk 0:03:00.3]} 3. Nf3 {[%clk 0:02:45.8]} 3... d5 {[%clk 0:03:00.6]}
4. Nbd2 {[%clk 0:02:40]} 4... Be7 {[%clk 0:03:01.1]} 5. Bd3 {[%clk 0:02:39.8]}
5... b6 {[%clk 0:03:00.3]} 6. Qe2 {[%clk 0:02:36.2]} 6... O-O {[%clk 0:02:55.7]}
7. Ne5 {[%clk 0:02:35.1]} 7... c5 {[%clk 0:02:50.2]} 8. c3 {[%clk 0:02:34.4]}
8... Bb7 {[%clk 0:02:50.9]} 9. O-O {[%clk 0:02:33.7]} 9... Nbd7 {[%clk
0:02:49.1]} 10. f4 {[%clk 0:02:33.8]} 10... Ne4 {[%clk 0:02:46.4]} 11. Nxe4
{[%clk 0:02:19]} 11... dxe4 {[%clk 0:02:47.3]} 12. Bc4 {[%clk 0:02:17.1]} 12...
Qc7 {[%clk 0:02:25.9]} 13. b3 {[%clk 0:02:07]} 13... Nf6 {[%clk 0:01:57.9]} 14.
Bb2 {[%clk 0:02:06.2]} 14... Nd5 {[%clk 0:01:48.4]} 15. Ba6 {[%clk 0:02:03.1]}
15... f6 {[%clk 0:01:43]} 16. Bxb7 {[%clk 0:02:01.4]} 16... Qxb7 {[%clk
0:01:43.9]} 17. Ng4 {[%clk 0:02:01.2]} 17... f5 {[%clk 0:01:32]} 18. Ne5 {[%clk
0:01:59.9]} 18... Bf6 {[%clk 0:01:32.5]} 19. c4 {[%clk 0:01:58.1]} 19... Nb4
{[%clk 0:01:26.7]} 20. a3 {[%clk 0:01:56.2]} 20... Bxe5 {[%clk 0:01:08.8]} 21.
axb4 {[%clk 0:01:54.5]} 21... Bd6 {[%clk 0:01:09.4]} 22. dxc5 {[%clk 0:01:35.8]}
22... bxc5 {[%clk 0:01:10.3]} 23. b5 {[%clk 0:01:29.7]} 23... a6 {[%clk
0:01:10.4]} 24. Rfd1 {[%clk 0:01:28.6]} 24... Be7 {[%clk 0:00:52.5]} 25. Ra4
{[%clk 0:01:22.2]} 25... axb5 {[%clk 0:00:46.9]} 26. cxb5 {[%clk 0:01:21.3]}
26... Rab8 {[%clk 0:00:39.2]} 27. Qc4 {[%clk 0:01:17.5]} 27... Qxb5 {[%clk
0:00:34.7]} 28. Qxe6+ {[%clk 0:01:17]} 28... Rf7 {[%clk 0:00:34.9]} 29. Ra3
{[%clk 0:00:33.8]} 29... Qe2 {[%clk 0:00:32.1]} 30. Rb1 {[%clk 0:00:27.9]} 30...
Qxe3+ {[%clk 0:00:29]} 31. Kh1 {[%clk 0:00:28.2]} 31... c4 {[%clk 0:00:22.3]}
32. Be5 {[%clk 0:00:19.9]} 32... Rd8 {[%clk 0:00:17.3]} 33. Raa1 {[%clk
0:00:13.2]} 33... cxb3 {[%clk 0:00:12.9]} 34. Rxb3 {[%clk 0:00:10.7]} 34... Qe2
{[%clk 0:00:09.3]} 35. h3 {[%clk 0:00:08.2]} 35... Rd1+ {[%clk 0:00:08.3]} 36.
Rxd1 {[%clk 0:00:08.4]} 36... Qxd1+ {[%clk 0:00:09.2]} 37. Kh2 {[%clk
0:00:09.1]} 1-0

[Event "Late-Titled-Tuesday-Blitz-September-26-2023"]
[Site "Chess.com"]
[Date "2023.09.26"]
[Round "5"]
[White "SEBAZZANO"]
[Black "agustinv04"]
[Result "1/2-1/2"]
[WhiteElo "2212"]
[BlackElo "2366"]
[TimeControl "180+1"]
[EndTime "14:55:00 PDT"]
[Termination "Game drawn by repetition"]

1. d4 {[%clk 0:03:00.2]} 1... Nf6 {[%clk 0:02:58.4]} 2. Bf4 {[%clk 0:02:58.6]}
2... g6 {[%clk 0:02:57.6]} 3. Nc3 {[%clk 0:02:58]} 3... d5 {[%clk 0:02:56.9]} 4.
e3 {[%clk 0:02:57.9]} 4... Bg7 {[%clk 0:02:56.8]} 5. h4 {[%clk 0:02:57.8]} 5...
h5 {[%clk 0:02:56.3]} 6. Nf3 {[%clk 0:02:57.2]} 6... c6 {[%clk 0:02:56.2]} 7.
Ne5 {[%clk 0:02:56.6]} 7... Nbd7 {[%clk 0:02:51.9]} 8. Be2 {[%clk 0:02:52.4]}
8... Nxe5 {[%clk 0:02:44.2]} 9. Bxe5 {[%clk 0:02:51.6]} 9... b5 {[%clk 0:02:11]}
10. f3 {[%clk 0:02:39.3]} 10... a5 {[%clk 0:02:06.3]} 11. Qd2 {[%clk 0:02:34.4]}
11... a4 {[%clk 0:02:00.5]} 12. a3 {[%clk 0:02:33.7]} 12... Qb6 {[%clk
0:01:28.7]} 13. O-O {[%clk 0:02:09]} 13... O-O {[%clk 0:01:28]} 14. Na2 {[%clk
0:01:26.7]} 14... Be6 {[%clk 0:01:23.7]} 15. Nb4 {[%clk 0:01:22.9]} 15... Rac8
{[%clk 0:01:14.7]} 16. Nd3 {[%clk 0:01:18.6]} 16... Nd7 {[%clk 0:01:11.1]} 17.
Bxg7 {[%clk 0:01:16.4]} 17... Kxg7 {[%clk 0:01:12]} 18. Kh2 {[%clk 0:00:51.1]}
18... f5 {[%clk 0:01:10.6]} 19. f4 {[%clk 0:00:39.7]} 19... Nf6 {[%clk
0:01:04.4]} 20. Bf3 {[%clk 0:00:37.4]} 20... Bd7 {[%clk 0:00:42.9]} 21. Nc5
{[%clk 0:00:34.6]} 21... Rfd8 {[%clk 0:00:34.8]} 22. Rfb1 {[%clk 0:00:32.3]}
22... Kf7 {[%clk 0:00:28.4]} 23. b3 {[%clk 0:00:30]} 23... axb3 {[%clk
0:00:19.6]} 24. cxb3 {[%clk 0:00:29.8]} 24... Ra8 {[%clk 0:00:17.5]} 25. a4
{[%clk 0:00:28.6]} 25... Ne4 {[%clk 0:00:14.9]} 26. Bxe4 {[%clk 0:00:28]} 26...
dxe4 {[%clk 0:00:15.8]} 27. a5 {[%clk 0:00:22.5]} 27... Qc7 {[%clk 0:00:12.2]}
28. b4 {[%clk 0:00:20.8]} 28... Be6 {[%clk 0:00:12.6]} 29. Rc1 {[%clk
0:00:16.9]} 29... Bd5 {[%clk 0:00:12.6]} 30. Qc3 {[%clk 0:00:15.2]} 30... e6
{[%clk 0:00:13]} 31. a6 {[%clk 0:00:13.8]} 31... Ra7 {[%clk 0:00:12.3]} 32. Ra5
{[%clk 0:00:13.2]} 32... Rda8 {[%clk 0:00:12.4]} 33. Rca1 {[%clk 0:00:13.2]}
33... Qb6 {[%clk 0:00:11.8]} 34. Nb7 {[%clk 0:00:10.5]} 34... Qc7 {[%clk
0:00:06.1]} 35. Qc5 {[%clk 0:00:10]} 35... Kf6 {[%clk 0:00:05.2]} 36. Nd6 {[%clk
0:00:08.3]} 36... Kg7 {[%clk 0:00:05.1]} 37. Nb7 {[%clk 0:00:07.8]} 37... Kf6
{[%clk 0:00:03.4]} 38. Nd6 {[%clk 0:00:07.2]} 38... Kg7 {[%clk 0:00:04.1]} 39.
Nb7 {[%clk 0:00:06.4]} 39... Kf6 {[%clk 0:00:04.6]} 1/2-1/2

[Event "Late-Titled-Tuesday-Blitz-September-26-2023"]
[Site "Chess.com"]
[Date "2023.09.26"]
[Round "5"]
[White "reevecanada"]
[Black "AradNazari"]
[Result "0-1"]
[WhiteElo "2521"]
[BlackElo "2782"]
[TimeControl "180+1"]
[EndTime "14:55:06 PDT"]
[Termination "AradNazari won by checkmate"]

1. e4 {[%clk 0:03:00.2]} 1... c5 {[%clk 0:02:56]} 2. Nf3 {[%clk 0:03:00]} 2...
d6 {[%clk 0:02:56.5]} 3. Bb5+ {[%clk 0:02:59.2]} 3... Nd7 {[%clk 0:02:55.8]} 4.
d4 {[%clk 0:02:56.6]} 4... cxd4 {[%clk 0:02:55.8]} 5. Nxd4 {[%clk 0:02:56.8]}
5... a6 {[%clk 0:02:56]} 6. Bd3 {[%clk 0:02:55.3]} 6... Ngf6 {[%clk 0:02:56.4]}
7. O-O {[%clk 0:02:55.1]} 7... g6 {[%clk 0:02:57]} 8. Re1 {[%clk 0:02:54.9]}
8... Bg7 {[%clk 0:02:57.5]} 9. c4 {[%clk 0:02:55.3]} 9... O-O {[%clk 0:02:57.9]}
10. Nc3 {[%clk 0:02:55.2]} 10... Ne5 {[%clk 0:02:53.5]} 11. Bf1 {[%clk
0:02:54.3]} 11... Bd7 {[%clk 0:02:47.4]} 12. b3 {[%clk 0:02:53.5]} 12... Nc6
{[%clk 0:02:40.4]} 13. Bb2 {[%clk 0:02:52.9]} 13... Nxd4 {[%clk 0:02:36.2]} 14.
Qxd4 {[%clk 0:02:52.4]} 14... Qa5 {[%clk 0:02:33.4]} 15. b4 {[%clk 0:02:45.7]}
15... Qg5 {[%clk 0:01:59.6]} 16. f4 {[%clk 0:02:21.9]} 16... Qh6 {[%clk
0:01:33.6]} 17. Nd5 {[%clk 0:02:02.8]} 17... Nxd5 {[%clk 0:01:32.6]} 18. Qxg7+
{[%clk 0:02:01.9]} 18... Qxg7 {[%clk 0:01:32.9]} 19. Bxg7 {[%clk 0:02:00.4]}
19... Kxg7 {[%clk 0:01:21.9]} 20. exd5 {[%clk 0:01:59.9]} 20... Rfe8 {[%clk
0:01:19.7]} 21. c5 {[%clk 0:01:47.9]} 21... Rac8 {[%clk 0:01:03.3]} 22. Rac1
{[%clk 0:01:45.5]} 22... Kf6 {[%clk 0:00:51]} 23. a3 {[%clk 0:01:31.8]} 23... a5
{[%clk 0:00:43.3]} 24. h3 {[%clk 0:01:16.3]} 24... axb4 {[%clk 0:00:43.1]} 25.
axb4 {[%clk 0:01:15.6]} 25... h5 {[%clk 0:00:43.7]} 26. Kf2 {[%clk 0:01:14.2]}
26... e6 {[%clk 0:00:26.2]} 27. cxd6 {[%clk 0:00:55.9]} 27... Rxc1 {[%clk
0:00:18.8]} 28. Rxc1 {[%clk 0:00:54.5]} 28... exd5 {[%clk 0:00:19.4]} 29. Rc7
{[%clk 0:00:48.7]} 29... Ke6 {[%clk 0:00:19.7]} 30. Rxb7 {[%clk 0:00:48.8]}
30... Rc8 {[%clk 0:00:12.2]} 31. Rb6 {[%clk 0:00:36]} 31... Rc3 {[%clk
0:00:12.5]} 32. g4 {[%clk 0:00:33.2]} 32... hxg4 {[%clk 0:00:12.4]} 33. hxg4
{[%clk 0:00:33.7]} 33... d4 {[%clk 0:00:12.6]} 34. Ke2 {[%clk 0:00:19.7]} 34...
Rc6 {[%clk 0:00:07.7]} 35. Rxc6 {[%clk 0:00:18.6]} 35... Bxc6 {[%clk 0:00:08.6]}
36. Kd3 {[%clk 0:00:17.6]} 36... Bb5+ {[%clk 0:00:09.1]} 37. Kxd4 {[%clk
0:00:16.5]} 37... Bxf1 {[%clk 0:00:09.7]} 38. Kc5 {[%clk 0:00:16.8]} 38... Bg2
{[%clk 0:00:08.9]} 39. f5+ {[%clk 0:00:16.2]} 39... gxf5 {[%clk 0:00:07.8]} 40.
gxf5+ {[%clk 0:00:17.1]} 40... Kd7 {[%clk 0:00:08.5]} 41. b5 {[%clk 0:00:16]}
41... f6 {[%clk 0:00:08.4]} 42. Kb6 {[%clk 0:00:10.6]} 42... Kxd6 {[%clk
0:00:08.9]} 43. Ka7 {[%clk 0:00:09.8]} 43... Ke5 {[%clk 0:00:09.5]} 44. b6
{[%clk 0:00:10.6]} 44... Kxf5 {[%clk 0:00:10.1]} 45. b7 {[%clk 0:00:11.3]} 45...
Bxb7 {[%clk 0:00:10.4]} 46. Kxb7 {[%clk 0:00:12.2]} 46... Ke4 {[%clk 0:00:11.2]}
47. Ka8 {[%clk 0:00:13.1]} 47... f5 {[%clk 0:00:12]} 48. Kb8 {[%clk 0:00:14]}
48... f4 {[%clk 0:00:12.9]} 49. Ka8 {[%clk 0:00:14.9]} 49... f3 {[%clk
0:00:13.8]} 50. Kb8 {[%clk 0:00:15.8]} 50... f2 {[%clk 0:00:14.7]} 51. Ka8
{[%clk 0:00:16.7]} 51... f1=Q {[%clk 0:00:15.6]} 52. Kb8 {[%clk 0:00:17.5]}
52... Qb5+ {[%clk 0:00:16.1]} 53. Ka8 {[%clk 0:00:18.4]} 53... Kd5 {[%clk
0:00:16.4]} 54. Ka7 {[%clk 0:00:19.1]} 54... Kc6 {[%clk 0:00:17.3]} 55. Ka8
{[%clk 0:00:19.6]} 55... Qb7# {[%clk 0:00:18.1]} 0-1

[Event "Late-Titled-Tuesday-Blitz-September-26-2023"]
[Site "Chess.com"]
[Date "2023.09.26"]
[Round "5"]
[White "Jospem"]
[Black "Agibileg"]
[Result "1-0"]
[WhiteElo "2988"]
[BlackElo "2690"]
[TimeControl "180+1"]
[EndTime "14:55:10 PDT"]
[Termination "Jospem won on time"]

1. e4 {[%clk 0:03:00.9]} 1... e5 {[%clk 0:02:58.1]} 2. Nf3 {[%clk 0:03:00.9]}
2... Nc6 {[%clk 0:02:58.5]} 3. Nc3 {[%clk 0:03:01.7]} 3... Nf6 {[%clk
0:02:57.8]} 4. h3 {[%clk 0:03:02.4]} 4... Bc5 {[%clk 0:02:55.8]} 5. Nxe5 {[%clk
0:03:02.4]} 5... Nxe5 {[%clk 0:02:49.3]} 6. d4 {[%clk 0:03:02.2]} 6... Bb4
{[%clk 0:02:49.7]} 7. dxe5 {[%clk 0:03:00.9]} 7... Nxe4 {[%clk 0:02:48.7]} 8.
Qd4 {[%clk 0:02:51.7]} 8... Bxc3+ {[%clk 0:02:27.3]} 9. bxc3 {[%clk 0:02:51]}
9... d5 {[%clk 0:02:24]} 10. exd6 {[%clk 0:02:28]} 10... O-O {[%clk 0:02:20.9]}
11. dxc7 {[%clk 0:01:55.2]} 11... Qxc7 {[%clk 0:02:20.4]} 12. Bd3 {[%clk
0:01:55.7]} 12... Qxc3+ {[%clk 0:02:16.2]} 13. Qxc3 {[%clk 0:01:55.3]} 13...
Nxc3 {[%clk 0:02:17.1]} 14. O-O {[%clk 0:01:46.4]} 14... Be6 {[%clk 0:02:03.2]}
15. a3 {[%clk 0:01:46.7]} 15... Rac8 {[%clk 0:01:57.9]} 16. Bd2 {[%clk
0:01:46.6]} 16... Rfd8 {[%clk 0:01:52.5]} 17. Rfe1 {[%clk 0:01:44.4]} 17... h6
{[%clk 0:01:19.8]} 18. a4 {[%clk 0:01:26.9]} 18... Rc6 {[%clk 0:00:52.9]} 19. a5
{[%clk 0:01:22.8]} 19... Bc4 {[%clk 0:00:49.7]} 20. Re3 {[%clk 0:00:26.8]} 20...
Bxd3 {[%clk 0:00:48.7]} 21. Rxd3 {[%clk 0:00:27.7]} 21... Rxd3 {[%clk
0:00:44.3]} 22. cxd3 {[%clk 0:00:28.6]} 22... Nd5 {[%clk 0:00:31.6]} 23. Kf1
{[%clk 0:00:27.6]} 23... b6 {[%clk 0:00:30.8]} 24. Ke2 {[%clk 0:00:26.5]} 24...
Kf8 {[%clk 0:00:22.7]} 25. d4 {[%clk 0:00:24.8]} 25... Ke7 {[%clk 0:00:20.4]}
26. Kd3 {[%clk 0:00:25.3]} 26... Kd6 {[%clk 0:00:17.8]} 27. Rb1 {[%clk
0:00:25.9]} 27... bxa5 {[%clk 0:00:16.9]} 28. Bxa5 {[%clk 0:00:19.2]} 28... Ra6
{[%clk 0:00:10.4]} 29. Rb5 {[%clk 0:00:16.9]} 29... Nf4+ {[%clk 0:00:10.5]} 30.
Ke4 {[%clk 0:00:17.2]} 30... Nxg2 {[%clk 0:00:09.3]} 31. Bb4+ {[%clk 0:00:17.6]}
31... Kc6 {[%clk 0:00:03.1]} 32. Rc5+ {[%clk 0:00:18.3]} 32... Kd7 {[%clk
0:00:03.4]} 33. Rd5+ {[%clk 0:00:19]} 33... Ke6 {[%clk 0:00:01.4]} 34. Rd8
{[%clk 0:00:19.3]} 34... Kf6 {[%clk 0:00:02.2]} 35. d5 {[%clk 0:00:19.5]} 35...
Ra4 {[%clk 0:00:02.3]} 36. Rb8 {[%clk 0:00:18.7]} 36... a5 {[%clk 0:00:02.8]}
37. Rb6+ {[%clk 0:00:17.5]} 37... Kg5 {[%clk 0:00:02.4]} 38. d6 {[%clk
0:00:18.3]} 38... Nf4 {[%clk 0:00:01.7]} 39. d7 {[%clk 0:00:17.8]} 39... Ne6
{[%clk 0:00:01.9]} 40. Rxe6 {[%clk 0:00:18.3]} 40... Rxb4+ {[%clk 0:00:02.6]}
41. Ke3 {[%clk 0:00:18]} 41... Rb3+ {[%clk 0:00:02.4]} 42. Ke2 {[%clk
0:00:18.3]} 42... Rb2+ {[%clk 0:00:02.8]} 43. Kd1 {[%clk 0:00:18.3]} 43... fxe6
{[%clk 0:00:02.8]} 44. d8=Q+ {[%clk 0:00:18.4]} 44... Kg6 {[%clk 0:00:02.9]} 45.
Qd3+ {[%clk 0:00:18.6]} 45... Kf7 {[%clk 0:00:02.5]} 46. Qd7+ {[%clk 0:00:19.2]}
1-0